bitfinex-derivatives/quotes_SOLF0:USTF0_20241103
["timestamp","ask_amount","ask_price","bid_price","bid_amount"]
[1730593098340,11.87358732,166.47,166.41,9.23358732]
[1730593098548,9.23358732,166.44,166.4,9.23358732]
[1730593098748,9.23358732,166.44,166.38,2.639]
[1730593098749,9.23358732,166.44,166.38,11.87258732]
[1730593098948,18.05,166.49,166.37,12.23958732]
[1730593098949,3.0054,166.41,166.37,12.23958732]
[1730593099848,3.0056,166.4,166.37,9.23358732]
[1730593100043,11.87358732,166.42,166.37,9.23358732]
[1730593100245,9.23358732,166.39,166.34,9.23358732]
[1730593100450,9.23358732,166.38,166.34,9.23358732]
[1730593100651,2.64,166.38,166.34,9.23358732]
[1730593101352,3.0062,166.37,166.34,9.23358732]
[1730593103171,3.0064,166.36,166.34,9.23358732]
[1730593103345,2.64,166.38,166.34,9.23358732]
[1730593103955,3.0062,166.37,166.34,9.23358732]
[1730593104350,3.0062,166.37,166.33,3.0068]
[1730593104351,11.87358732,166.38,166.33,9.23358732]
[1730593104557,3.0063,166.36,166.33,9.23358732]
[1730593106855,3.0066,166.34,166.31,9.23358732]
[1730593107042,9.23358732,166.36,166.31,9.23358732]
[1730593107763,11.87358732,166.38,166.33,9.23358732]
[1730593108853,12.23968732,166.37,166.32,12.24048732]
[1730593110452,3.0066,166.34,166.32,9.23358732]
[1730593110651,2.64,166.38,166.32,9.23358732]
[1730593110652,9.23358732,166.37,166.32,9.23358732]
[1730593111465,3.0063,166.36,166.32,9.23358732]
[1730593118856,3.0067,166.34,166.32,9.23358732]
[1730593120564,3.0067,166.34,166.31,11.83938732]
[1730593122773,3.0068,166.33,166.31,11.83938732]
[1730593124055,3.0068,166.33,166.3,4.3493]
[1730593124056,11.87358732,166.33,166.27,9.23358732]
[1730593124261,9.23358732,166.3,166.25,3.0082]
[1730593124661,3.0076,166.29,166.25,12.24178732]
[1730593125172,9.23358732,166.31,166.25,12.24178732]
[1730593125370,9.23358732,166.31,166.23,1.3542]
[1730593125371,3.0071,166.31,166.28,3.0075]
[1730593126068,5.6471,166.32,166.29,9.23358732]
[1730593127278,3.0074,166.3,166.26,12.24148732]
[1730593127466,9.23358732,166.31,166.26,9.23358732]
[1730593127658,9.23358732,166.31,166.24,9.23358732]
[1730593127865,3.0076,166.29,166.25,3.0081]
[1730593130167,9.23358732,166.29,166.24,9.23358732]
[1730593130364,9.23358732,166.29,166.23,13.59628732]
[1730593130565,11.87358732,166.28,166.23,13.59628732]
[1730593130772,5.6477,166.28,166.25,12.24178732]
[1730593132775,5.6477,166.28,166.23,10.58778732]
[1730593132776,2.64,166.28,166.23,10.58778732]
[1730593132967,3.0079,166.27,166.24,3.0083]
[1730593135269,2.64,166.28,166.23,10.58778732]
[1730593135474,3.0082,166.26,166.23,13.59628732]
[1730593140983,5.6478,166.28,166.25,12.24178732]
[1730593141182,5.6478,166.28,166.26,9.23358732]
[1730593141375,2.64,166.28,166.26,9.23358732]
[1730593142088,3.0079,166.27,166.26,9.23358732]
[1730593143893,11.87358732,166.28,166.24,9.23358732]
[1730593144077,11.87358732,166.28,166.24,12.24188732]
[1730593144472,2.64,166.28,166.24,12.24188732]
[1730593145287,3.008,166.27,166.24,12.24188732]
[1730593145675,2.64,166.28,166.24,9.23358732]
[1730593145988,2.64,166.28,166.25,9.23358732]
[1730593146384,2.64,166.28,166.26,3.008]
[1730593147489,5.6478,166.28,166.25,12.24178732]
[1730593149079,5.6478,166.28,166.25,3.0082]
[1730593155991,3.0075,166.3,166.26,3.0079]
[1730593156197,2.66,166.3,166.26,9.23358732]
[1730593157393,3.0076,166.29,166.26,12.24158732]
[1730593159511,3.0076,166.29,166.26,3.008]
[1730593163406,11.89358732,166.3,166.25,9.23358732]
[1730593163592,3.0079,166.27,166.24,3.0082]
[1730593164403,3.0081,166.26,166.23,3.0085]
[1730593164602,9.23358732,166.27,166.22,9.23358732]
[1730593164909,3.0081,166.26,166.22,12.24228732]
[1730593165208,2.66,166.26,166.22,12.24228732]
[1730593165596,3.0083,166.25,166.22,12.24228732]
[1730593168412,3.0084,166.24,166.22,12.24228732]
[1730593169405,9.23358732,166.25,166.21,9.23358732]
[1730593169605,9.23358732,166.24,166.2,3.009]
[1730593170297,3.0087,166.23,166.2,3.009]
[1730593174712,3.0087,166.23,166.2,12.24258732]
[1730593174909,2.66,166.26,166.21,9.23358732]
[1730593175108,9.23358732,166.27,166.21,9.23358732]
[1730593175409,11.89358732,166.27,166.21,9.23358732]
[1730593175608,3.0082,166.26,166.23,3.0084]
[1730593176901,2.66,166.27,166.23,9.23358732]
[1730593177101,3.0078,166.28,166.24,9.23358732]
[1730593177303,12.24108732,166.29,166.25,3.0081]
[1730593177612,14.90108732,166.29,166.25,3.0081]
[1730593178298,3.0077,166.28,166.25,3.0081]
[1730593179118,3.0077,166.28,166.24,9.23358732]
[1730593179314,3.0077,166.28,166.24,12.24188732]
[1730593180107,12.24128732,166.28,166.24,3.0083]
[1730593180616,3.0079,166.27,166.24,3.0083]
[1730593180809,12.24148732,166.27,166.24,3.0083]
[1730593181007,3.0079,166.27,166.24,3.0083]
[1730593188120,3.0079,166.27,166.24,3.0084]
[1730593189827,3.0086,166.23,166.2,12.24268732]
[1730593190127,3.0086,166.23,166.2,9.23358732]
[1730593190727,3.0086,166.23,166.2,12.24268732]
[1730593192623,2.64,166.25,166.21,12.24248732]
[1730593192823,9.23358732,166.27,166.22,9.23358732]
[1730593192824,2.64,166.27,166.22,9.23358732]
[1730593193322,3.0081,166.26,166.22,12.24228732]
[1730593194018,3.0082,166.25,166.22,12.24228732]
[1730593194818,3.0081,166.26,166.23,3.0085]
[1730593198032,11.87358732,166.27,166.24,12.24178732]
[1730593198033,3.0079,166.27,166.24,12.24178732]
[1730593200730,3.0079,166.27,166.24,3.0082]
[1730593200731,12.24148732,166.27,166.24,3.0082]
[1730593203534,3.0079,166.27,166.24,3.0082]
[1730593208340,3.0079,166.27,166.24,12.24178732]
[1730593208651,9.23358732,166.32,166.26,9.23358732]
[1730593208830,2.64,166.31,166.27,9.23358732]
[1730593209139,2.64,166.31,166.18,2.64]
[1730593209140,9.23358732,166.3,166.25,9.23358732]
[1730593209840,3.0075,166.29,166.27,3.0078]
[1730593210035,9.23358732,166.3,166.27,3.0078]
[1730593210754,2.64,166.31,166.27,12.24138732]
[1730593211248,3.0074,166.3,166.27,12.24138732]
[1730593222143,2.64,166.31,166.27,9.23358732]
[1730593222337,5.6472,166.31,166.27,9.23358732]
[1730593223248,5.6472,166.31,166.27,12.24128732]
[1730593223752,5.6472,166.31,166.27,9.23358732]
[1730593223953,5.6472,166.31,166.27,12.24128732]
[1730593224742,2.64,166.31,166.27,9.23358732]
[1730593224951,2.64,166.31,166.23,3.9582]
[1730593224952,9.23358732,166.3,166.25,9.23358732]
[1730593225443,3.0078,166.28,166.24,12.24188732]
[1730593225640,9.23358732,166.28,166.23,2.6897]
[1730593225842,9.23358732,166.28,166.22,9.23358732]
[1730593226043,2.64,166.27,166.22,9.23358732]
[1730593227358,3.008,166.26,166.23,3.0084]
[1730593229151,3.008,166.26,166.18,3.8531]
[1730593229152,12.24208732,166.24,166.19,12.24278732]
[1730593229453,9.23358732,166.24,166.19,9.23358732]
[1730593230247,3.0087,166.23,166.2,3.0091]
[1730593235757,3.0082,166.26,166.22,12.24238732]
[1730593236563,11.87358732,166.27,166.22,12.24238732]
[1730593236864,3.0082,166.25,166.22,12.24238732]
[1730593246368,2.64,166.26,166.22,9.23358732]
[1730593247271,5.6481,166.26,166.23,3.0084]
[1730593247657,3.0081,166.26,166.23,3.0084]
[1730593254462,3.0081,166.26,166.24,3.0084]
[1730593254759,2.64,166.28,166.24,9.23358732]
[1730593255071,2.64,166.28,166.26,3.0079]
[1730593255869,3.0076,166.29,166.26,3.0079]
[1730593257774,3.0078,166.28,166.25,12.24168732]
[1730593260462,3.0078,166.28,166.25,3.0081]
[1730593260664,9.23358732,166.3,166.25,3.0081]
[1730593262163,3.0078,166.28,166.25,3.0081]
[1730593266485,9.23358732,166.29,166.24,9.23358732]
[1730593266677,9.23358732,166.29,166.22,9.23358732]
[1730593267688,3.0082,166.26,166.23,3.0085]
[1730593268078,11.87358732,166.31,166.25,9.23358732]
[1730593268272,3.0076,166.29,166.26,3.0079]
[1730593268784,3.0077,166.28,166.26,3.0079]
[1730593270090,2.64,166.32,166.27,9.23358732]
[1730593270286,2.64,166.32,166.29,9.23358732]
[1730593270587,3.0072,166.31,166.29,9.23358732]
[1730593271684,3.007,166.32,166.29,12.24108732]
[1730593271988,9.23358732,166.36,166.31,9.23358732]
[1730593272180,2.64,166.36,166.31,9.23358732]
[1730593272377,3.0065,166.35,166.31,9.23358732]
[1730593272985,11.87358732,166.37,166.32,9.23358732]
[1730593273184,5.6462,166.37,166.32,9.23358732]
[1730593273392,2.64,166.37,166.32,9.23358732]
[1730593274392,2.64,166.37,166.33,3.0067]
[1730593274393,3.0063,166.36,166.33,3.0067]
[1730593275281,3.0063,166.36,166.32,9.23358732]
[1730593277684,12.23988732,166.36,166.31,12.24058732]
[1730593278486,9.23358732,166.36,166.31,12.24058732]
[1730593278700,9.23358732,166.35,166.3,9.23358732]
[1730593278994,9.23358732,166.34,166.29,11.83208732]
[1730593279291,3.007,166.32,166.29,11.83208732]
[1730593280381,3.007,166.32,166.29,10.55368732]
[1730593286095,3.007,166.32,166.29,1.3201]
[1730593290785,11.87358732,166.34,166.29,1.3201]
[1730593290991,3.0071,166.31,166.29,1.3201]
[1730593291901,3.0073,166.3,166.29,1.3201]
[1730593292597,3.0077,166.28,166.26,9.23358732]
[1730593293315,3.0077,166.28,166.26,12.24158732]
[1730593293888,3.0077,166.28,166.26,9.23358732]
[1730593294096,3.0077,166.28,166.25,13.60448732]
[1730593296500,9.23358732,166.27,166.23,3.0085]
[1730593296799,9.23358732,166.27,166.22,32.53804681]
[1730593297199,3.0082,166.25,166.22,35.54674681]
[1730593298105,9.23358732,166.27,166.22,32.53804681]
[1730593298307,9.23358732,166.27,166.23,3.0085]
[1730593298308,3.0081,166.26,166.23,3.0085]
[1730593298507,18.05,166.37,166.25,9.23358732]
[1730593298508,9.23358732,166.3,166.25,9.23358732]
[1730593298798,3.0079,166.27,166.25,9.23358732]
[1730593308612,3.0076,166.29,166.26,12.24148732]
[1730593309020,3.0076,166.29,166.26,9.23358732]
[1730593311312,3.0076,166.29,166.26,12.24158732]
[1730593313315,3.0076,166.29,166.26,3.008]
[1730593321537,11.87358732,166.3,166.26,3.008]
[1730593321737,3.0077,166.28,166.26,3.008]
[1730593324339,3.0072,166.31,166.27,9.23358732]
[1730593325131,3.0072,166.31,166.28,3.0076]
[1730593327946,9.23358732,166.35,166.27,9.23358732]
[1730593328153,3.0069,166.33,166.3,12.24078732]
[1730593328340,9.23358732,166.35,166.3,12.24078732]
[1730593328744,3.0067,166.34,166.3,12.24078732]
[1730593328941,9.23358732,166.35,166.3,12.24078732]
[1730593329341,3.0068,166.33,166.3,12.24078732]
[1730593331243,3.0068,166.33,166.31,3.0071]
[1730593332453,3.0068,166.33,166.3,12.24078732]
[1730593337455,3.0066,166.35,166.32,12.24048732]
[1730593337654,9.23358732,166.36,166.32,12.24048732]
[1730593338161,2.64,166.37,166.32,12.24048732]
[1730593338162,11.87358732,166.37,166.32,12.24048732]
[1730593339240,3.0066,166.34,166.32,12.24048732]
[1730593341865,3.0068,166.33,166.3,12.24078732]
[1730593342564,3.007,166.32,166.3,12.24078732]
[1730593342765,3.007,166.32,166.3,3.0072]
[1730593345765,9.23358732,166.34,166.29,9.23358732]
[1730593346068,3.0075,166.3,166.28,9.23358732]
[1730593347262,3.0072,166.31,166.28,12.24118732]
[1730593347464,3.0072,166.31,166.29,9.23358732]
[1730593349875,3.0069,166.33,166.3,9.23358732]
[1730593350876,3.0069,166.33,166.3,12.24078732]
[1730593355666,3.0069,166.33,166.3,3.0072]
[1730593358379,3.0073,166.31,166.29,9.23358732]
[1730593358577,3.0073,166.31,166.28,3.0076]
[1730593362178,3.0073,166.31,166.29,3.0075]
[1730593365384,3.0073,166.31,166.28,9.23358732]
[1730593365572,3.0073,166.31,166.28,12.24118732]
[1730593370087,11.87358732,166.35,166.3,9.23358732]
[1730593370272,2.64,166.35,166.31,9.23358732]
[1730593370674,3.0069,166.33,166.31,9.23358732]
[1730593370875,3.0069,166.33,166.3,12.24078732]
[1730593380688,9.23358732,166.34,166.28,9.23358732]
[1730593381082,9.23358732,166.32,166.27,9.23358732]
[1730593381681,3.0073,166.31,166.28,3.0075]
[1730593382088,9.23358732,166.34,166.28,9.23358732]
[1730593382278,11.53904781,166.38,166.33,9.23358732]
[1730593382479,6.0094,166.45,166.35,9.23358732]
[1730593382480,9.23358732,166.4,166.35,9.23358732]
[1730593383081,11.87358732,166.4,166.35,9.23358732]
[1730593384196,3.0059,166.38,166.35,12.23988732]
[1730593387885,3.006,166.38,166.34,9.23358732]
[1730593388089,9.23358732,166.37,166.33,3.0067]
[1730593389288,3.0063,166.36,166.33,3.0067]
[1730593391703,3.0068,166.34,166.31,9.23358732]
[1730593392008,9.23358732,166.33,166.28,9.23358732]
[1730593392186,3.0074,166.3,166.28,9.23358732]
[1730593392798,9.23358732,166.33,166.28,9.23358732]
[1730593393098,3.0072,166.31,166.28,9.23358732]
[1730593393311,3.0072,166.31,166.28,12.24128732]
[1730593395404,9.23358732,166.32,166.27,9.23358732]
[1730593395698,3.0075,166.29,166.27,9.23358732]
[1730593396107,3.0075,166.29,166.26,6.9016]
[1730593397594,9.23358732,166.34,166.28,9.23358732]
[1730593397812,11.87358732,166.34,166.3,9.23358732]
[1730593398310,3.0069,166.33,166.3,9.23358732]
[1730593398599,9.23358732,166.33,166.29,9.23358732]
[1730593398803,3.0071,166.32,166.28,3.0076]
[1730593402197,3.0071,166.32,166.29,9.23358732]
[1730593410009,3.0071,166.32,166.29,12.24108732]
[1730593416930,3.0071,166.32,166.29,3.0075]
[1730593418826,9.23358732,166.31,166.26,13.12728732]
[1730593419023,2.64,166.34,166.24,9.23358732]
[1730593419024,9.23358732,166.3,166.24,9.23358732]
[1730593419217,9.23358732,166.28,166.23,9.23358732]
[1730593419524,3.0081,166.26,166.23,3.0085]
[1730593420328,9.23358732,166.27,166.22,9.23358732]
[1730593420524,12.24158732,166.27,166.24,3.0084]
[1730593421236,3.0082,166.26,166.23,3.0085]
[1730593421613,3.0082,166.26,166.22,9.23358732]
[1730593421815,3.0082,166.25,166.22,12.24218732]
[1730593422028,9.23358732,166.27,166.22,12.24218732]
[1730593423317,3.0081,166.26,166.22,12.24218732]
[1730593423516,9.23358732,166.25,166.21,3.0089]
[1730593424212,3.0085,166.24,166.21,3.0089]
[1730593424823,2.64,166.26,166.23,12.24198732]
[1730593425031,11.87358732,166.29,166.24,9.23358732]
[1730593425530,3.0078,166.28,166.24,9.23358732]
[1730593425718,3.0078,166.28,166.25,9.23358732]
[1730593427031,2.64,166.3,166.26,3.0079]
[1730593427630,2.64,166.3,166.28,3.0076]
[1730593427826,2.64,166.31,166.27,9.23358732]
[1730593428227,3.0075,166.29,166.27,9.23358732]
[1730593429636,2.64,166.31,166.27,9.23358732]
[1730593429824,9.23358732,166.33,166.28,9.23358732]
[1730593430024,3.007,166.32,166.29,3.0074]
[1730593430637,3.0073,166.31,166.28,12.24118732]
[1730593430937,9.23358732,166.32,166.27,9.23358732]
[1730593431642,3.0074,166.3,166.27,12.24128732]
[1730593432733,3.0071,166.31,166.28,3.0076]
[1730593432930,3.0071,166.31,166.28,12.24118732]
[1730593433435,3.007,166.32,166.29,3.0075]
[1730593433636,2.64,166.34,166.29,9.23358732]
[1730593434029,3.0069,166.33,166.29,12.24098732]
[1730593434839,2.64,166.34,166.29,12.24098732]
[1730593435038,3.007,166.32,166.29,12.24098732]
[1730593440142,9.23358732,166.36,166.31,9.23358732]
[1730593440332,11.87358732,166.36,166.31,12.24058732]
[1730593440843,9.23358732,166.36,166.32,3.0069]
[1730593442050,3.0065,166.35,166.32,3.0069]
[1730593444430,3.0069,166.33,166.3,3.0072]
[1730593445744,3.0069,166.33,166.31,9.23358732]
[1730593445944,3.0067,166.34,166.31,12.24068732]
[1730593450545,3.0065,166.35,166.32,12.24048732]
[1730593450948,34.84669879,166.38,166.34,9.23358732]
[1730593451241,3.0062,166.36,166.34,9.23358732]
[1730593453553,37.48669879,166.38,166.31,3.007]
[1730593453554,3.0067,166.34,166.31,3.007]
[1730593453739,9.23358732,166.35,166.31,3.007]
[1730593454953,9.23358732,166.35,166.3,9.23358732]
[1730593455251,3.0068,166.33,166.3,12.24078732]
[1730593458750,9.23358732,166.35,166.3,9.23358732]
[1730593458958,37.48669879,166.38,166.28,12.24118732]
[1730593458959,3.0071,166.31,166.28,12.24118732]
[1730593459559,3.0071,166.31,166.28,9.23358732]
[1730593459749,3.0071,166.31,166.29,3.0075]
[1730593463948,3.0071,166.31,166.28,12.24118732]
[1730593464859,9.23358732,166.33,166.28,9.23358732]
[1730593465161,9.23358732,166.31,166.26,9.23358732]
[1730593465546,3.0076,166.29,166.26,9.23358732]
[1730593465746,9.23358732,166.31,166.26,9.23358732]
[1730593467456,2.64,166.34,166.26,9.23358732]
[1730593467457,9.23358732,166.3,166.26,9.23358732]
[1730593467764,11.87358732,166.3,166.25,12.24158732]
[1730593469353,3.0077,166.29,166.25,12.24158732]
[1730593471553,3.0077,166.28,166.25,12.24158732]
[1730593477861,3.0077,166.28,166.26,9.23358732]
[1730593478456,3.0073,166.3,166.27,12.24128732]
[1730593478656,11.87358732,166.32,166.27,9.23358732]
[1730593479071,9.23358732,166.32,166.27,9.23358732]
[1730593479766,3.0073,166.31,166.28,3.0076]
[1730593491173,3.0076,166.29,166.26,3.008]
[1730593500481,3.008,166.27,166.24,3.0083]
[1730593500681,9.23358732,166.28,166.22,9.23358732]
[1730593500866,9.23358732,166.27,166.21,9.23358732]
[1730593502378,3.0083,166.25,166.22,9.23358732]
[1730593505789,3.0086,166.24,166.22,9.23358732]
[1730593505985,3.0086,166.24,166.21,12.24238732]
[1730593506781,3.0086,166.23,166.21,12.24238732]
[1730593508586,3.0086,166.23,166.21,9.23358732]
[1730593512999,3.0083,166.25,166.22,3.0088]
[1730593516092,9.23358732,166.27,166.22,9.23358732]
[1730593516299,3.0079,166.27,166.24,12.24188732]
[1730593516495,9.23358732,166.3,166.25,9.23358732]
[1730593516681,11.87358732,166.3,166.25,9.23358732]
[1730593516886,3.0077,166.28,166.25,12.24168732]
[1730593525992,3.0077,166.28,166.22,2.62]
[1730593525993,3.0075,166.29,166.27,9.23358732]
[1730593532319,11.85358732,166.33,166.27,9.23358732]
[1730593532506,2.62,166.33,166.28,12.24118732]
[1730593533017,3.007,166.32,166.28,12.24118732]
[1730593533315,9.23358732,166.34,166.3,12.24088732]
[1730593534418,3.0069,166.33,166.3,12.24088732]
[1730593535604,9.23358732,166.33,166.29,9.23358732]
[1730593535812,3.0072,166.31,166.29,9.23358732]
[1730593544530,9.23358732,166.33,166.29,9.23358732]
[1730593544822,9.23358732,166.33,166.29,12.24098732]
[1730593544823,3.0071,166.32,166.29,12.24098732]
[1730593546320,3.007,166.32,166.29,9.23358732]
[1730593549830,2.62,166.36,166.31,9.23358732]
[1730593550025,6.0098,166.44,166.33,9.23358732]
[1730593550026,2.62,166.38,166.33,9.23358732]
[1730593550327,9.23358732,166.37,166.33,9.23358732]
[1730593550518,3.0065,166.35,166.33,9.23358732]
[1730593554834,3.0065,166.35,166.32,3.0069]
[1730593555138,9.23358732,166.36,166.31,9.23358732]
[1730593556329,3.0067,166.34,166.31,12.24068732]
[1730593557434,9.23358732,166.35,166.3,9.23358732]
[1730593557737,9.23358732,166.33,166.28,9.23358732]
[1730593557926,3.0071,166.31,166.28,12.24118732]
[1730593558125,9.23358732,166.33,166.28,12.24118732]
[1730593559131,3.007,166.32,166.29,3.0074]
[1730593559334,3.007,166.32,166.3,9.23358732]
[1730593559838,2.62,166.34,166.31,9.23358732]
[1730593560023,5.6267,166.34,166.31,12.24068732]
[1730593560226,3.0067,166.34,166.31,12.24068732]
[1730593560737,11.85358732,166.37,166.31,9.23358732]
[1730593560936,3.0068,166.33,166.31,9.23358732]
[1730593564234,3.0068,166.33,166.3,3.0073]
[1730593567140,3.0068,166.33,166.31,9.23358732]
[1730593573340,9.23358732,166.35,166.3,9.23358732]
[1730593573341,3.0071,166.32,166.3,9.23358732]
[1730593573541,9.23358732,166.35,166.3,9.23358732]
[1730593575259,3.0068,166.33,166.3,12.24088732]
[1730593576153,9.23358732,166.35,166.32,12.24038732]
[1730593576154,3.0064,166.35,166.32,12.24038732]
[1730593577255,3.0064,166.35,166.32,9.23358732]
[1730593577658,3.0066,166.34,166.31,12.24068732]
[1730593579960,9.23358732,166.37,166.33,9.23358732]
[1730593580163,33.17396685,166.4,166.33,12.24038732]
[1730593580164,3.0064,166.36,166.33,12.24038732]
[1730593581367,3.0064,166.36,166.33,9.23358732]
[1730593585758,3.0064,166.36,166.34,3.0066]
[1730593588172,3.0064,166.36,166.34,12.24018732]
[1730593589878,3.0061,166.37,166.34,12.24008732]
[1730593600792,3.0058,166.39,166.36,12.23978732]
[1730593606187,9.23358732,166.41,166.36,9.23358732]
[1730593606492,9.23358732,166.41,166.31,2.62]
[1730593606493,9.23358732,166.39,166.35,9.23358732]
[1730593606788,3.0062,166.36,166.33,12.24028732]
[1730593607185,9.23358732,166.38,166.33,9.23358732]
[1730593607391,9.23358732,166.38,166.32,9.23358732]
[1730593607392,3.0066,166.34,166.32,9.23358732]
[1730593608581,3.0066,166.34,166.33,9.23358732]
[1730593612397,3.0065,166.35,166.33,9.23358732]
[1730593614693,11.85358732,166.39,166.33,9.23358732]
[1730593614891,3.0064,166.36,166.33,9.23358732]
[1730593616392,3.0064,166.36,166.33,12.24038732]
[1730593620292,11.85358732,166.39,166.32,9.23358732]
[1730593620293,3.0065,166.35,166.32,9.23358732]
[1730593620496,9.23358732,166.37,166.32,9.23358732]
[1730593621090,3.0067,166.34,166.32,9.23358732]
[1730593621295,9.23358732,166.36,166.3,10.59928732]
[1730593621498,9.23358732,166.36,166.3,13.60658732]
[1730593623301,3.0066,166.35,166.3,13.60658732]
[1730593623509,9.23358732,166.36,166.3,13.60658732]
[1730593624209,3.0068,166.34,166.3,13.60658732]
[1730593624595,3.0068,166.34,166.3,13.56266227]
[1730593628003,3.0068,166.34,166.32,9.23358732]
[1730593630911,3.0065,166.35,166.32,12.24048732]
[1730593631314,3.0065,166.35,166.33,9.23358732]
[1730593633708,9.23358732,166.36,166.31,9.23358732]
[1730593633901,9.23358732,166.35,166.3,10.55536227]
[1730593634317,3.007,166.32,166.3,10.55536227]
[1730593636112,3.0069,166.33,166.3,13.56266227]
[1730593639726,9.23358732,166.35,166.3,10.55536227]
[1730593640025,9.23358732,166.35,166.29,10.56858732]
[1730593640614,3.0071,166.32,166.29,10.56858732]
[1730593642925,3.0067,166.34,166.3,12.24078732]
[1730593643319,3.0067,166.34,166.3,9.23358732]
[1730593643619,3.0067,166.34,166.3,12.24088732]
[1730593643831,9.23358732,166.36,166.3,9.23358732]
[1730593644032,9.23358732,166.36,166.31,3.0071]
[1730593644412,9.23358732,166.36,166.3,9.23358732]
[1730593644911,3.0067,166.34,166.3,12.24078732]
[1730593648325,3.0063,166.36,166.33,9.23358732]
[1730593648626,11.85358732,166.38,166.33,9.23358732]
[1730593648824,2.62,166.38,166.33,9.23358732]
[1730593649023,2.62,166.38,166.33,12.24018732]
[1730593650328,2.62,166.38,166.33,9.23358732]
[1730593650520,2.62,166.38,166.33,12.24028732]
[1730593651233,3.0062,166.37,166.33,12.24028732]
[1730593651923,3.0064,166.36,166.33,12.24028732]
[1730593653034,3.0062,166.37,166.33,12.24028732]
[1730593653235,2.62,166.4,166.35,9.23358732]
[1730593653436,9.23358732,166.41,166.35,9.23358732]
[1730593653734,3.0058,166.39,166.35,9.23358732]
[1730593654521,3.0058,166.39,166.35,12.23988732]
[1730593654927,2.62,166.41,166.36,9.23358732]
[1730593655232,3.0056,166.4,166.36,12.23968732]
[1730593657329,9.23358732,166.43,166.36,9.23358732]
[1730593657530,3.0054,166.41,166.38,12.23938732]
[1730593659523,42.87813498,166.44,166.38,9.23358732]
[1730593659832,9.23358732,166.41,166.37,9.23358732]
[1730593660823,9.23358732,166.41,166.35,2.6919]
[1730593660824,3.0059,166.39,166.35,14.93178732]
[1730593661622,3.0059,166.39,166.36,3.0062]
[1730593663530,2.92793649,166.39,166.36,12.23978732]
[1730593663732,3.0056,166.4,166.36,12.23978732]
[1730593666240,3.0057,166.39,166.36,12.23978732]
[1730593668345,3.0057,166.39,166.36,9.23358732]
[1730593668560,9.23358732,166.41,166.35,10.54758732]
[1730593668735,9.23358732,166.39,166.35,9.23358732]
[1730593669133,3.006,166.38,166.35,9.23358732]
[1730593669440,9.23358732,166.39,166.35,9.23358732]
[1730593669836,3.0062,166.36,166.35,9.23358732]
[1730593673751,3.0061,166.37,166.35,9.23358732]
[1730593679147,3.0059,166.39,166.36,9.23358732]
[1730593681539,2.62,166.4,166.36,9.23358732]
[1730593681742,3.0059,166.38,166.36,9.23358732]
[1730593684758,2.62,166.4,166.36,9.23358732]
[1730593686348,5.6256,166.4,166.37,3.0059]
[1730593689856,3.0056,166.4,166.37,3.0059]
[1730593709492,3.0056,166.4,166.36,12.23978732]
[1730593719001,9.23358732,166.41,166.36,9.23358732]
[1730593719199,9.23358732,166.4,166.34,12.24008732]
[1730593720304,3.0062,166.37,166.34,12.24008732]
[1730593720804,31.02454766,166.44,166.32,9.23358732]
[1730593720805,3.0067,166.34,166.32,9.23358732]
[1730593720999,9.23358732,166.36,166.32,9.23358732]
[1730593721808,3.0067,166.34,166.32,9.23358732]
[1730593722908,3.0065,166.35,166.32,9.23358732]
[1730593728308,11.85358732,166.38,166.33,9.23358732]
[1730593728502,3.0063,166.36,166.33,12.24028732]
[1730593729210,3.0064,166.35,166.33,12.24028732]
[1730593732821,3.0064,166.35,166.33,3.0067]
[1730593735503,9.23358732,166.36,166.31,1.3003]
[1730593735708,12.24028732,166.34,166.31,3.007]
[1730593737601,3.0067,166.34,166.31,12.24058732]
[1730593745018,9.23358732,166.37,166.32,9.23358732]
[1730593745220,3.0063,166.36,166.32,9.23358732]
[1730593745913,3.0063,166.36,166.32,12.24048732]
[1730593752824,3.0064,166.35,166.32,12.24048732]
[1730593753322,3.007,166.32,166.29,25.02341333]
[1730593753623,12.24058732,166.32,166.29,25.02341333]
[1730593754525,3.007,166.32,166.29,25.02341333]
[1730593757121,3.007,166.32,166.29,34.25700065]
[1730593757428,3.0068,166.33,166.29,34.25700065]
[1730593759138,3.0068,166.33,166.29,31.24960065]
[1730593759323,3.0068,166.33,166.3,3.0072]
[1730593759523,12.24028732,166.34,166.3,3.0072]